bitfinex-derivatives/quotes_BTCF0:USTF0_20241003
["timestamp","ask_amount","ask_price","bid_price","bid_amount"]
[1727976087888,0.3618,60532.0,60528.0,0.08261]
[1727976087889,0.6518,60532.0,60528.0,0.08261]
[1727976088089,0.0678001,60531.0,60528.0,0.08261]
[1727976088283,0.0678001,60530.0,60525.0,0.082614]
[1727976088489,0.082607,60531.0,60513.0,0.08263]
[1727976088490,0.0678001,60529.0,60515.0,0.1193]
[1727976088692,0.0678001,60528.0,60524.0,0.082614]
[1727976088887,0.0678001,60527.0,60524.0,0.082614]
[1727976089084,0.0678001,60526.0,60524.0,0.082614]
[1727976089293,0.0678001,60525.0,60524.0,0.082614]
[1727976089788,0.0678001,60525.0,60524.0,0.001]
[1727976090176,0.0678001,60525.0,60521.0,0.08262]
[1727976090380,0.0678001,60524.0,60521.0,0.08262]
[1727976090581,0.0678001,60524.0,60415.0,0.04885878]
[1727976090582,1.0116,60522.0,60506.0,0.3242]
[1727976090780,0.29,60520.0,60506.0,0.35196403]
[1727976090986,0.372622,60520.0,60513.0,0.08263]
[1727976091191,0.372622,60520.0,60506.0,0.64196403]
[1727976091391,0.7216,60522.0,60521.0,0.001]
[1727976091895,0.804218,60522.0,60521.0,0.001]
[1727976092280,0.7894001,60522.0,60521.0,0.001]
[1727976092586,0.804218,60522.0,60521.0,0.002]
[1727976092988,0.805218,60522.0,60521.0,0.002]
[1727976093193,0.805218,60522.0,60521.0,0.04715711]
[1727976093194,0.7904001,60522.0,60521.0,0.04715711]
[1727976094399,0.7914001,60522.0,60521.0,0.04815711]
[1727976094695,0.7236,60522.0,60521.0,0.04815711]
[1727976095395,0.002,60522.0,60521.0,1.14383711]
[1727976095686,0.002,60522.0,60521.0,0.54383711]
[1727976096491,0.002,60522.0,60521.0,0.04815711]
[1727976097895,0.002,60522.0,60521.0,0.07677039]
[1727976098296,0.445418,60522.0,60521.0,0.001]
[1727976099816,0.3628,60522.0,60521.0,0.001]
[1727976100119,0.002,60522.0,60521.0,1.4693]
[1727976100316,0.3608,60531.0,60521.0,1.4693]
[1727976100317,0.3608,60531.0,60530.0,0.082607]
[1727976100501,0.3608,60531.0,60530.0,0.372607]
[1727976102492,0.3618,60531.0,60530.0,0.373607]
[1727976102694,0.3628,60531.0,60530.0,0.374607]
[1727976103091,0.002,60531.0,60530.0,0.374607]
[1727976104898,0.002,60531.0,60530.0,0.084607]
[1727976105493,0.002,60531.0,60530.0,0.374607]
[1727976107392,0.001,60531.0,60530.0,0.373607]
[1727976107600,0.002,60531.0,60530.0,0.374607]
[1727976108094,0.002,60531.0,60530.0,0.084607]
[1727976111498,0.002,60531.0,60516.0,0.00236]
[1727976111499,1.2528,60531.0,60516.0,0.00236]
[1727976111697,0.6528,60531.0,60514.0,0.29]
[1727976111915,0.29,60522.0,60509.0,0.3608]
[1727976112199,0.082626,60517.0,60515.0,0.082627]
[1727976112398,0.082626,60517.0,60509.0,0.31782431]
[1727976112399,0.3608,60516.0,60509.0,0.31782431]
[1727976112796,0.3608,60516.0,60513.0,0.08263]
[1727976112797,0.082629,60514.0,60513.0,0.08263]
[1727976113101,0.443427,60516.0,60513.0,0.08263]
[1727976113308,0.443427,60516.0,60514.0,0.082629]
[1727976114604,0.443427,60516.0,60509.0,0.32282431]
[1727976114605,0.3608,60516.0,60515.0,0.082628]
[1727976115497,0.3608,60516.0,60513.0,0.001]
[1727976115498,0.082629,60514.0,60513.0,0.001]
[1727976115701,0.3638,60516.0,60515.0,0.082628]
[1727976115900,0.446426,60516.0,60515.0,0.082628]
[1727976116098,0.446426,60516.0,60513.0,0.001]
[1727976116306,0.082629,60514.0,60513.0,0.001]
[1727976116496,0.446426,60516.0,60509.0,0.082636]
[1727976116497,0.118,60515.0,60509.0,0.082636]
[1727976116800,0.118,60515.0,60505.0,0.29]
[1727976117102,0.200628,60515.0,60509.0,0.29]
[1727976117307,0.200628,60515.0,60514.0,0.082629]
[1727976118804,0.202628,60515.0,60514.0,0.082629]
[1727976118999,0.002,60515.0,60514.0,0.372629]
[1727976120011,0.3608,60528.0,60527.0,0.082611]
[1727976120310,0.3608,60528.0,60527.0,0.372611]
[1727976121699,0.002,60528.0,60527.0,0.373611]
[1727976122016,0.3608,60541.0,60527.0,1.70428078]
[1727976122215,0.3608,60550.0,60527.0,1.70428078]
[1727976122216,0.02806555,60549.0,60540.0,0.29]
[1727976122417,0.3608,60550.0,60545.0,0.082586]
[1727976122714,0.3608,60550.0,60540.0,0.29]
[1727976122919,0.082581,60549.0,60544.0,0.082588]
[1727976123208,0.082586,60546.0,60536.0,0.29]
[1727976123407,0.443387,60545.0,60540.0,0.082593]
[1727976123614,0.443387,60545.0,60536.0,0.29]
[1727976123806,0.3608,60545.0,60542.0,0.08259]
[1727976124011,0.3608,60545.0,60544.0,0.082588]
[1727976124205,0.3608,60545.0,60540.0,0.083593]
[1727976125012,0.3608,60545.0,60542.0,0.08259]
[1727976125211,0.3608,60545.0,60544.0,0.082588]
[1727976126517,0.3608,60545.0,60544.0,0.083588]
[1727976127204,0.3608,60545.0,60544.0,0.11141582]
[1727976127409,0.3608,60545.0,60544.0,0.11241582]
[1727976127913,0.3608,60545.0,60544.0,0.084588]
[1727976128111,0.443387,60545.0,60544.0,0.002]
[1727976128606,0.672087,60545.0,60544.0,0.002]
[1727976131116,0.672087,60545.0,60544.0,0.084588]
[1727976131619,0.082589,60544.0,60534.0,0.082602]
[1727976131924,2.08568766,60545.0,60530.0,0.082606]
[1727976131925,0.082606,60532.0,60530.0,0.082606]
[1727976132126,0.082606,60532.0,60521.0,0.29]
[1727976132316,0.082606,60532.0,60521.0,0.31772634]
[1727976132716,0.082607,60531.0,60529.0,0.082608]
[1727976132920,0.082604,60533.0,60523.0,0.082616]
[1727976133117,0.29,60534.0,60525.0,0.082614]
[1727976133118,0.082611,60527.0,60525.0,0.082614]
[1727976133816,0.082602,60534.0,60523.0,0.082616]
[1727976134018,0.082602,60534.0,60521.0,0.01]
[1727976134019,0.082603,60533.0,60529.0,0.372608]
[1727976134223,0.082603,60533.0,60521.0,0.01]
[1727976134224,0.082606,60531.0,60526.0,0.082613]
[1727976134822,0.082618,60522.0,60521.0,0.01]
[1727976135019,0.08262,60521.0,60517.0,0.11100654]
[1727976135218,0.08262,60521.0,60513.0,0.29]
[1727976135521,0.2302,60527.0,60509.0,0.29]
[1727976135720,0.082623,60519.0,60513.0,0.08263]
[1727976135925,0.082629,60514.0,60513.0,0.08263]
[1727976136221,0.3608,60516.0,60513.0,0.082629]
[1727976136818,0.443427,60516.0,60513.0,0.082629]
[1727976137016,0.3608,60516.0,60513.0,0.082629]
[1727976137217,0.082628,60515.0,60513.0,0.082629]
[1727976137520,0.082628,60515.0,60513.0,0.085629]
[1727976137825,0.3608,60516.0,60515.0,0.082628]
[1727976139623,0.3608,60516.0,60515.0,0.090628]
[1727976140728,0.3608,60516.0,60515.0,0.096628]
[1727976140927,0.3608,60528.0,60527.0,0.082611]
[1727976141226,0.3608,60528.0,60522.0,0.29]
[1727976141631,0.3608,60528.0,60524.0,0.082614]
[1727976141924,0.3608,60528.0,60525.0,0.082614]
[1727976142224,0.3608,60528.0,60515.0,0.015]
[1727976142225,0.082613,60526.0,60520.0,0.08262]
[1727976142420,0.3618,60528.0,60517.0,0.082625]
[1727976142614,0.08262,60521.0,60515.0,0.006]
[1727976143021,0.1187,60527.0,60509.0,0.38826456]
[1727976143225,0.1187,60527.0,60513.0,0.082629]
[1727976143422,0.082627,60516.0,60509.0,0.38826456]
[1727976143626,0.082627,60516.0,60511.0,0.082632]
[1727976143822,0.3608,60514.0,60513.0,0.082631]
[1727976144441,0.3608,60514.0,60513.0,0.085631]
[1727976145126,0.3608,60514.0,60513.0,0.090631]
[1727976145719,0.3608,60514.0,60513.0,0.087631]
[1727976145935,0.3608,60514.0,60513.0,0.090631]
[1727976146830,0.31945077,60514.0,60513.0,0.090631]
[1727976147631,0.31945077,60514.0,60513.0,0.380631]
[1727976149922,0.40207977,60514.0,60513.0,0.008]
[1727976150123,0.31945077,60514.0,60513.0,0.008]
[1727976150326,0.31945077,60514.0,60513.0,0.090631]
[1727976150530,0.31945077,60514.0,60513.0,0.008]
[1727976150531,0.40207977,60514.0,60513.0,0.008]
[1727976150833,0.31945077,60514.0,60513.0,0.13948978]
[1727976151031,0.26157069,60514.0,60513.0,0.090631]
[1727976151529,0.26157069,60514.0,60513.0,0.15592617]
[1727976151728,0.26157069,60514.0,60513.0,0.18441288]
[1727976152031,0.082614,60526.0,60514.0,0.082629]
[1727976152228,0.4816,60528.0,60520.0,0.23901088]
[1727976152430,0.4816,60528.0,60524.0,0.082614]
[1727976152827,0.082614,60525.0,60521.0,0.04901088]
[1727976153032,0.082614,60525.0,60523.0,0.082617]
[1727976153537,0.082614,60525.0,60524.0,0.001]
[1727976153738,0.4816,60528.0,60524.0,0.001]
[1727976154126,0.4816,60528.0,60524.0,0.082615]
[1727976154328,0.082613,60526.0,60521.0,0.082619]
[1727976154529,0.082613,60526.0,60522.0,0.082617]
[1727976154730,0.082613,60526.0,60523.0,0.082616]
[1727976154929,0.1197,60527.0,60526.0,0.082613]
[1727976155734,0.1187,60527.0,60526.0,0.082613]
[1727976157238,0.1197,60527.0,60526.0,0.082613]
[1727976157427,0.17895449,60527.0,60526.0,0.082613]
[1727976157630,0.06025449,60527.0,60526.0,0.082613]
[1727976158842,0.3608,60528.0,60527.0,0.082611]
[1727976160037,0.3608,60528.0,60527.0,0.372611]
[1727976160434,0.3618,60528.0,60527.0,0.372611]
[1727976160840,0.001,60528.0,60527.0,0.372611]
[1727976161041,0.00247872,60535.0,60527.0,0.372611]
[1727976161342,0.00247872,60535.0,60534.0,0.082602]
[1727976162443,0.3608,60538.0,60534.0,0.082602]
[1727976162743,0.3608,60538.0,60537.0,0.082598]
[1727976164444,0.001,60538.0,60537.0,0.372598]
[1727976165036,0.02749041,60550.0,60537.0,0.372598]
[1727976165238,0.443378,60552.0,60548.0,0.082583]
[1727976165546,0.082581,60550.0,60548.0,0.082583]
[1727976166343,0.082587,60546.0,60538.0,0.082596]
[1727976166548,0.38888105,60552.0,60537.0,0.31767041]
[1727976166744,0.47145805,60552.0,60548.0,0.082582]
[1727976166951,0.47145805,60552.0,60548.0,0.083582]
[1727976167252,0.08258,60551.0,60549.0,0.082581]
[1727976167453,0.38888105,60552.0,60549.0,0.082581]
[1727976167954,0.082581,60550.0,60549.0,0.082581]
[1727976168944,0.28598575,60550.0,60537.0,0.31767041]
[1727976169148,0.54911554,60549.0,60548.0,0.082583]
[1727976169557,0.54911554,60549.0,60537.0,0.02767041]
[1727976169558,0.082586,60546.0,60537.0,0.02767041]
[1727976169749,0.12705854,60545.0,60544.0,0.082588]
[1727976170061,0.06780158,60545.0,60544.0,0.082588]
[1727976171356,0.06880158,60545.0,60544.0,0.082588]
[1727976171748,0.06880158,60545.0,60544.0,0.083588]
[1727976172746,0.06880158,60545.0,60544.0,0.11200369]
[1727976173352,0.06880158,60545.0,60544.0,0.10080333]
[1727976173753,0.06880158,60545.0,60544.0,0.29080333]
[1727976174147,0.14514779,60545.0,60544.0,0.29080333]
[1727976174351,0.13314779,60545.0,60544.0,1.38632333]
[1727976174553,0.002478,60554.0,60553.0,0.082576]
[1727976174752,0.002478,60554.0,60553.0,0.272576]
[1727976174951,0.002478,60554.0,60553.0,0.082576]
[1727976175449,0.07883394,60554.0,60553.0,0.082576]
[1727976175859,0.07883394,60554.0,60553.0,0.083576]
[1727976176059,0.07983394,60554.0,60553.0,0.084576]
[1727976176456,0.14764239,60554.0,60553.0,0.084576]
[1727976176755,0.086053,60554.0,60553.0,0.002]
[1727976176960,0.003478,60554.0,60553.0,0.084576]
[1727976178055,0.003478,60554.0,60553.0,0.002]
[1727976178056,0.1147831,60554.0,60553.0,0.002]
[1727976178251,0.198153,60554.0,60553.0,0.002]
[1727976178452,0.115578,60554.0,60553.0,0.084576]
[1727976178649,0.003478,60554.0,60553.0,0.084576]
[1727976184166,0.001,60554.0,60553.0,0.084576]
[1727976185464,0.3608,60555.0,60554.0,0.082575]
[1727976186667,0.3618,60555.0,60554.0,0.083575]
[1727976186852,0.444373,60555.0,60554.0,0.083575]
[1727976187654,0.47248457,60555.0,60554.0,0.084575]
[1727976187856,0.38991157,60555.0,60554.0,0.084575]
[1727976188359,0.47248457,60555.0,60554.0,0.084575]
[1727976189664,0.444373,60555.0,60554.0,0.084575]
[1727976190555,0.3618,60555.0,60554.0,0.274575]
[1727976191565,0.001,60555.0,60554.0,0.274575]
[1727976191760,0.001,60555.0,60554.0,1.130815]
[1727976192063,0.14515944,60555.0,60554.0,0.43615544]
[1727976192264,0.08490228,60565.0,60554.0,1.61417044]
[1727976192563,0.443343,60578.0,60554.0,1.61417044]
[1727976192564,0.3608,60578.0,60577.0,0.082543]
[1727976192763,0.08489269,60578.0,60577.0,0.272543]
[1727976193256,0.08489269,60588.0,60583.0,0.082535]
[1727976193457,0.16122901,60587.0,60584.0,0.082533]
[1727976193665,0.082524,60592.0,60586.0,0.19]
[1727976193966,0.1206,60593.0,60586.0,0.19]
[1727976194466,0.001,60588.0,60586.0,0.19]
[1727976194662,0.001,60588.0,60587.0,0.08253]
[1727976194962,0.272529,60588.0,60586.0,0.001]
[1727976195165,0.272529,60588.0,60574.0,0.3608]
[1727976195166,1.08497038,60587.0,60574.0,0.082546]
[1727976195370,1.08497038,60587.0,60558.0,0.3608]
[1727976195371,0.19,60575.0,60570.0,0.02818476]
[1727976195553,0.19,60575.0,60560.0,0.3392]
[1727976195554,0.14412978,60574.0,60567.0,0.19]
[1727976195862,0.14412978,60573.0,60568.0,0.082554]
[1727976196068,0.14412978,60572.0,60567.0,0.00772991]
[1727976196264,0.14412978,60571.0,60570.0,0.082553]
[1727976196562,0.14412978,60571.0,60560.0,0.4505609]
[1727976196563,0.33412978,60571.0,60568.0,0.082555]
[1727976196768,0.14412978,60570.0,60568.0,0.082555]
[1727976196954,0.14412978,60569.0,60568.0,0.082555]
[1727976197363,0.50492978,60569.0,60568.0,0.082555]
[1727976198262,0.50492978,60569.0,60568.0,0.084555]
[1727976199058,0.3608,60569.0,60568.0,0.084555]
[1727976199361,0.3608,60574.0,60568.0,0.274555]
[1727976199564,0.3608,60574.0,60573.0,0.082549]
[1727976199765,0.3608,60574.0,60573.0,0.05995139]
[1727976201269,0.3608,60574.0,60569.0,0.082553]
[1727976201560,0.3608,60574.0,60560.0,0.3679949]
[1727976201561,0.19,60570.0,60561.0,0.19]
[1727976201762,0.199155,60569.0,60560.0,0.2223]
[1727976201963,0.3638,60574.0,60573.0,0.082549]
[1727976202358,0.3628,60574.0,60573.0,0.082549]
[1727976203069,0.3628,60574.0,60569.0,0.191]
[1727976203267,0.272553,60570.0,60569.0,0.001]
[1727976203865,1.772553,60570.0,60569.0,0.001]
[1727976204062,0.15034578,60570.0,60569.0,0.001]
[1727976204370,0.082553,60570.0,60569.0,0.001]
[1727976204567,0.1128,60573.0,60566.0,0.082558]
[1727976204872,0.078557,60567.0,60566.0,0.05249551]
[1727976205268,0.082561,60565.0,60563.0,0.082561]
[1727976205570,0.1135,60569.0,60560.0,0.082566]
[1727976205571,0.082565,60561.0,60560.0,0.082566]
[1727976206070,0.19,60566.0,60558.0,0.02792362]
[1727976206071,0.082561,60565.0,60564.0,0.082561]
[1727976206267,0.19,60566.0,60561.0,0.082565]
[1727976206268,0.082564,60562.0,60561.0,0.082565]
[1727976207158,0.15035678,60562.0,60561.0,0.082565]
[1727976207364,0.15035678,60562.0,60554.0,0.21823845]
[1727976207365,0.42859278,60562.0,60554.0,0.21823845]
[1727976207666,0.42859278,60562.0,60553.0,0.1145]
[1727976207667,0.19,60557.0,60553.0,0.04274245]
[1727976207867,0.3608,60554.0,60547.0,0.02809228]
[1727976208060,0.34079977,60553.0,60552.0,0.082577]
[1727976208266,0.34079977,60553.0,60541.0,0.3027]
[1727976208267,0.25822277,60553.0,60548.0,0.082582]
[1727976208572,0.082583,60548.0,60541.0,0.33013453]
[1727976208770,0.082583,60548.0,60547.0,0.082582]
[1727976208961,0.14412146,60548.0,60547.0,0.095582]
[1727976209473,0.22670446,60548.0,60547.0,0.013]
[1727976209968,0.22670446,60548.0,60547.0,0.01170001]
[1727976210373,0.22670446,60548.0,60547.0,0.02270001]
[1727976210874,0.082587,60545.0,60544.0,0.082587]
[1727976211071,0.22670846,60545.0,60544.0,0.082587]
[1727976211572,0.22670846,60545.0,60537.0,0.19]
[1727976211764,0.082594,60541.0,60540.0,0.082592]
[1727976211965,0.1503832,60541.0,60540.0,0.082592]
[1727976212175,0.5111832,60541.0,60540.0,0.082592]
[1727976212379,0.6185892,60541.0,60522.0,0.082618]
[1727976212578,0.082602,60534.0,60533.0,0.082603]
[1727976212773,0.0677892,60534.0,60533.0,0.082603]
[1727976213672,0.0677892,60534.0,60533.0,0.093603]
[1727976214372,0.3608,60536.0,60533.0,0.011]
[1727976214578,0.3608,60536.0,60535.0,0.0826]
[1727976214579,0.443399,60536.0,60535.0,0.0826]
[1727976215172,0.3608,60536.0,60535.0,0.2726]
[1727976215368,0.3608,60542.0,60535.0,0.2726]
[1727976215674,0.3608,60542.0,60541.0,0.082592]
[1727976216483,0.3608,60542.0,60541.0,0.13158824]
[1727976217183,0.3608,60542.0,60541.0,0.085592]
[1727976218187,0.3608,60542.0,60541.0,0.198292]
[1727976218376,0.3608,60542.0,60541.0,0.203292]
[1727976218781,0.082586,60546.0,60541.0,0.203292]
[1727976218782,0.3608,60554.0,60541.0,0.1207]
[1727976219087,0.3608,60554.0,60553.0,0.272576]
[1727976219879,0.2271,60567.0,60553.0,0.19]
[1727976219880,0.4746,60567.0,60553.0,0.19]
[1727976220083,0.082565,60561.0,60559.0,0.19]
[1727976220288,0.082561,60564.0,60560.0,0.082566]
[1727976220479,0.082561,60564.0,60553.0,0.04902972]
[1727976220480,0.002,60554.0,60553.0,0.001]
[1727976220671,0.274575,60554.0,60553.0,0.001]
[1727976220877,0.08258,60550.0,60546.0,0.02855012]
[1727976221177,0.082579,60551.0,60546.0,0.082585]
[1727976221488,0.196376,60553.0,60542.0,0.15542972]
[1727976221678,0.1138,60553.0,60551.0,0.082579]
[1727976221878,0.1138,60553.0,60542.0,0.04902972]
[1727976222079,0.1138,60553.0,60543.0,0.082589]
[1727976222080,0.082584,60547.0,60543.0,0.082589]
[1727976222376,0.3038,60553.0,60548.0,0.082582]
[1727976222584,0.196376,60553.0,60550.0,0.08258]
[1727976222787,0.196376,60553.0,60541.0,0.1127]
[1727976222788,0.196376,60553.0,60552.0,0.082577]
[1727976223093,0.082572,60557.0,60552.0,0.082577]
[1727976223386,0.082575,60554.0,60552.0,0.082577]
[1727976223580,0.002,60553.0,60552.0,0.082577]
[1727976224181,0.082573,60556.0,60552.0,0.082577]
[1727976224379,0.19,60553.0,60542.0,0.08259]
[1727976224578,0.19,60553.0,60549.0,0.082581]
[1727976224779,0.082578,60552.0,60549.0,0.082581]
[1727976225079,0.19,60553.0,60541.0,0.14105409]
[1727976225380,0.082579,60551.0,60550.0,0.08258]
[1727976226082,0.002,60553.0,60547.0,0.19]
[1727976226283,0.082576,60553.0,60552.0,0.082577]
[1727976226880,0.082574,60555.0,60542.0,0.272591]
[1727976226881,0.082574,60555.0,60542.0,0.19]
[1727976227083,0.002,60551.0,60550.0,0.08258]
[1727976227278,0.002,60551.0,60550.0,0.27258]
[1727976227686,0.002,60551.0,60550.0,0.08258]
[1727976227988,0.002,60551.0,60542.0,0.04902972]
[1727976227989,0.082585,60547.0,60545.0,0.082586]
[1727976228783,0.082585,60547.0,60546.0,0.082585]
[1727976229291,0.06878974,60547.0,60546.0,0.082585]
[1727976229687,0.06778974,60547.0,60546.0,0.082585]
[1727976229891,0.06978974,60547.0,60546.0,0.082585]
[1727976230589,0.06978974,60547.0,60546.0,0.578065]
[1727976230777,0.002,60547.0,60546.0,0.578065]
[1727976230981,0.06778974,60558.0,60557.0,0.08257]
[1727976231183,0.06778974,60559.0,60558.0,0.082569]
[1727976231379,0.06777666,60559.0,60558.0,0.082569]
[1727976232196,0.06777666,60559.0,60549.0,0.082581]
[1727976232197,0.25777666,60559.0,60546.0,0.006]
[1727976232390,0.082574,60555.0,60552.0,0.082577]
[1727976232580,0.082576,60553.0,60552.0,0.082577]
[1727976232993,0.18107666,60558.0,60552.0,0.082577]
[1727976233188,0.18107666,60558.0,60544.0,0.082588]
[1727976233189,0.082572,60556.0,60544.0,0.082588]
[1727976233388,0.06777666,60557.0,60555.0,0.082573]
[1727976233588,0.00247785,60560.0,60558.0,0.003]
[1727976233795,0.00247785,60560.0,60559.0,0.082568]
[1727976234603,0.07023943,60560.0,60559.0,0.082568]
[1727976235093,0.07223943,60560.0,60559.0,0.082568]
[1727976236085,0.07223943,60560.0,60559.0,0.084568]
[1727976236792,0.00247785,60560.0,60559.0,0.088568]
[1727976237197,0.082566,60560.0,60559.0,0.006]
[1727976237381,0.082566,60560.0,60559.0,0.01]
[1727976238084,0.082566,60560.0,60559.0,0.014]
[1727976238291,0.082566,60560.0,60559.0,0.011]
[1727976238991,0.1105417,60560.0,60559.0,0.011]
[1727976239295,0.1105417,60560.0,60559.0,0.006]
[1727976239794,0.082569,60558.0,60557.0,0.08257]
[1727976239996,0.002,60560.0,60559.0,0.082568]
[1727976240995,0.1046,60576.0,60559.0,0.082568]
[1727976240996,0.082543,60578.0,60573.0,0.082549]
[1727976241292,0.00247762,60580.0,60579.0,0.08254]
[1727976241490,0.00247762,60580.0,60579.0,0.37254]
[1727976241799,0.00247762,60580.0,60579.0,0.08254]
[1727976241985,0.3608,60582.0,60575.0,0.29]
[1727976242188,0.3608,60582.0,60580.0,0.082538]
[1727976242397,0.3608,60582.0,60581.0,0.082538]
[1727976243893,0.00247639,60593.0,60581.0,0.4952]
[1727976244098,0.00247639,60593.0,60592.0,0.372523]
[1727976244287,0.00247639,60593.0,60580.0,0.082539]
[1727976244288,0.14653338,60593.0,60580.0,0.188439]
[1727976244489,0.3608,60583.0,60580.0,0.001]
[1727976244689,0.3608,60583.0,60581.0,0.083538]
[1727976244690,0.06775887,60582.0,60581.0,0.083538]
[1727976245094,0.14405699,60582.0,60581.0,0.082538]
[1727976245799,0.14405699,60582.0,60581.0,0.083538]
[1727976245998,0.20485699,60583.0,60581.0,0.083538]
[1727976246394,0.1044,60587.0,60581.0,0.001]
[1727976246599,0.1037,60588.0,60587.0,0.08253]
[1727976246799,0.1037,60588.0,60584.0,0.082532]
[1727976247103,0.07630621,60587.0,60585.0,0.082532]
[1727976247291,0.07630621,60586.0,60585.0,0.07417881]
[1727976247598,0.07630621,60586.0,60585.0,0.43497881]
[1727976247995,0.14407657,60586.0,60585.0,0.43497881]
[1727976248297,0.14407657,60586.0,60585.0,0.23217623]
[1727976248492,0.14407657,60586.0,60585.0,0.31470823]
[1727976248690,0.14407657,60586.0,60585.0,0.001]
[1727976249194,0.07630621,60586.0,60585.0,0.001]
[1727976249600,0.07630621,60586.0,60585.0,0.002]
[1727976249797,0.07630621,60586.0,60585.0,0.084532]
[1727976250096,0.20520201,60870.0,60586.0,0.49516]
[1727976250097,0.49012376,60615.0,60586.0,0.49516]
[1727976250299,0.12932376,60615.0,60604.0,0.733306]
[1727976250489,0.59249706,60605.0,60604.0,1.69413971]
[1727976250691,0.45097074,60605.0,60604.0,1.77664571]
[1727976251088,0.50327977,60605.0,60604.0,1.77664571]
[1727976251502,0.50327977,60605.0,60604.0,1.77764571]
[1727976251803,0.07630903,60605.0,60604.0,1.77764571]
[1727976252199,0.3608,60623.0,60604.0,1.77764571]
[1727976252503,0.3608,60623.0,60615.0,0.29]
[1727976252998,0.3608,60623.0,60622.0,0.082482]
[1727976254303,0.3608,60623.0,60622.0,0.083482]
[1727976254499,0.1044,60625.0,60622.0,0.001]
[1727976255202,0.1044,60625.0,60622.0,0.002]
[1727976255400,0.1044,60625.0,60624.0,0.082479]
[1727976255808,0.1057,60633.0,60624.0,0.29]
[1727976255996,0.1057,60633.0,60629.0,0.29]
[1727976256196,0.1057,60633.0,60630.0,0.08247]
[1727976256398,0.1057,60633.0,60631.0,0.082469]
[1727976256800,0.3608,60634.0,60631.0,0.082469]
[1727976257494,0.3608,60634.0,60631.0,0.083469]
[1727976258107,0.443266,60634.0,60631.0,0.001]
[1727976258304,0.3608,60634.0,60631.0,0.002]
[1727976258494,0.3608,60634.0,60633.0,0.082467]
[1727976258699,0.082458,60640.0,60633.0,0.29]
[1727976258894,0.29,60636.0,60631.0,0.002]
[1727976259107,0.082466,60634.0,60631.0,0.002]
[1727976259312,0.29,60636.0,60631.0,0.002]
[1727976259509,0.372464,60636.0,60623.0,0.23804048]
[1727976259805,0.07628699,60635.0,60631.0,0.001]
[1727976260000,0.29,60632.0,60623.0,0.23804048]
[1727976260308,0.443275,60628.0,60621.0,0.082483]
[1727976260497,0.443275,60628.0,60620.0,0.02794314]
[1727976260498,0.082478,60626.0,60620.0,0.02794314]
[1727976260701,0.08485511,60625.0,60611.0,0.29]
[1727976260901,0.08485511,60624.0,60611.0,0.22492001]
[1727976261201,0.082478,60626.0,60620.0,0.082484]
[1727976261202,0.08485511,60623.0,60620.0,0.082484]
[1727976261395,0.08485511,60622.0,60620.0,0.082484]
[1727976261596,0.08485511,60621.0,60620.0,0.07423561]
[1727976261997,0.08485511,60621.0,60620.0,0.35077786]
[1727976262508,0.08485511,60621.0,60620.0,0.19288929]
[1727976262699,0.08485511,60621.0,60620.0,0.27537329]
[1727976262899,0.1014,60627.0,60620.0,0.27537329]
[1727976263100,0.1014,60627.0,60620.0,0.19288929]
[1727976263299,0.1023,60626.0,60620.0,0.19288929]
[1727976264012,0.005,60621.0,60620.0,0.27537429]
[1727976264600,0.002,60621.0,60620.0,0.27537429]
[1727976264900,0.1073,60626.0,60624.0,0.082479]
[1727976265296,0.1073,60626.0,60620.0,0.19288929]
[1727976265612,0.1053,60626.0,60625.0,0.372478]
[1727976265913,0.003,60626.0,60625.0,0.372478]
[1727976266111,0.3608,60628.0,60627.0,0.082475]
[1727976267608,0.3638,60628.0,60627.0,0.083475]
[1727976268113,0.3648,60628.0,60627.0,0.084475]
[1727976269214,0.3648,60628.0,60627.0,0.11200857]
[1727976270310,0.004,60628.0,60627.0,0.11200857]
[1727976270511,0.3608,60633.0,60632.0,0.082468]
[1727976270713,0.3608,60633.0,60632.0,0.372468]
[1727976271513,0.3618,60633.0,60632.0,0.373468]
[1727976272409,0.3618,60633.0,60632.0,0.292]
[1727976272610,1.4566,60633.0,60619.0,0.04873948]
[1727976272811,0.082478,60625.0,60622.0,0.13122048]
[1727976273016,0.082479,60625.0,60623.0,0.04866649]
[1727976273318,0.3618,60633.0,60622.0,0.0649751]
[1727976273319,0.082468,60632.0,60622.0,0.0649751]
[1727976273616,0.39032022,60633.0,60621.0,0.0649751]
[1727976273617,0.082482,60622.0,60621.0,0.0649751]
[1727976273808,0.3608,60624.0,60620.0,0.0649751]
[1727976274007,0.38932022,60633.0,60620.0,0.0649751]
[1727976274008,0.3608,60650.0,60649.0,0.082445]
[1727976274201,0.3608,60650.0,60649.0,0.372445]
[1727976274408,0.3608,60650.0,60649.0,0.364145]
[1727976275112,0.3608,60658.0,60651.0,0.082442]
[1727976275422,0.3608,60658.0,60649.0,0.29]
[1727976275710,0.1012,60657.0,60649.0,0.29]
[1727976276022,0.2046,60657.0,60653.0,0.08244]
[1727976276908,0.2066,60657.0,60653.0,0.08244]
[1727976277109,0.2076,60657.0,60653.0,0.08244]
[1727976277316,0.2056,60657.0,60653.0,0.08244]
[1727976277517,0.2076,60657.0,60653.0,0.08344]
[1727976277912,0.2076,60657.0,60654.0,0.082438]
[1727976278408,0.290034,60657.0,60653.0,0.001]
[1727976278612,0.2066,60657.0,60653.0,0.002]
[1727976279110,0.2066,60657.0,60656.0,0.082436]
[1727976279506,0.2046,60657.0,60656.0,0.082436]
[1727976279714,0.2056,60657.0,60656.0,0.082436]
[1727976280214,0.2056,60657.0,60656.0,0.084436]
[1727976281214,0.1044,60657.0,60656.0,0.084436]